bitfinex-derivatives/quotes_BTCF0:USTF0_20241221
["timestamp","ask_amount","ask_price","bid_price","bid_amount"]
[1734739518505,0.13778295,97691.0,97689.0,4e-05]
[1734739518704,0.13778295,97691.0,97690.0,4e-05]
[1734739519102,0.051197,97697.0,97690.0,4e-05]
[1734739519303,0.051197,97695.0,97690.0,4e-05]
[1734739519504,0.01432556,97694.0,97682.0,0.009]
[1734739519707,0.01432556,97693.0,97682.0,0.009]
[1734739519906,0.051202,97685.0,97683.0,0.33666179]
[1734739520108,0.01432556,97684.0,97659.0,0.33666179]
[1734739520303,0.051213,97666.0,97660.0,0.33666179]
[1734739520606,8e-05,97663.0,97661.0,0.33666179]
[1734739520814,0.051294,97663.0,97661.0,0.33666179]
[1734739521003,0.051294,97663.0,97658.0,0.3608]
[1734739521004,0.051215,97662.0,97658.0,0.3608]
[1734739521512,0.31901506,97662.0,97658.0,0.3608]
[1734739522300,0.26780006,97662.0,97651.0,0.0933]
[1734739522504,0.051219,97653.0,97651.0,0.0933]
[1734739522706,4e-05,97655.0,97651.0,0.0933]
[1734739523714,0.2344491,97655.0,97651.0,0.0973]
[1734739523914,0.051219,97653.0,97651.0,0.0973]
[1734739524313,0.051219,97653.0,97651.0,0.1013]
[1734739524815,0.08430688,97652.0,97651.0,0.1013]
[1734739525918,0.051222,97649.0,97647.0,0.0981]
[1734739527615,0.051222,97649.0,97637.0,0.051227]
[1734739527616,0.08430688,97648.0,97637.0,0.051227]
[1734739527817,0.08430688,97648.0,97647.0,0.004]
[1734739528114,0.44510688,97648.0,97647.0,0.004]
[1734739529314,0.44510688,97648.0,97647.0,0.003]
[1734739529706,0.44510688,97648.0,97637.0,0.005]
[1734739530008,0.44510688,97648.0,97622.0,0.0895]
[1734739530009,0.051228,97636.0,97622.0,0.0895]
[1734739530209,0.3608,97628.0,97622.0,0.0895]
[1734739530412,4e-05,97626.0,97622.0,0.0895]
[1734739530811,4e-05,97626.0,97614.0,0.00153663]
[1734739531018,0.051236,97622.0,97614.0,0.00153663]
[1734739531518,4e-05,97618.0,97614.0,0.00153663]
[1734739531818,0.18229847,97615.0,97614.0,0.00153663]
[1734739532820,0.00504,97618.0,97614.0,0.00253663]
[1734739533112,0.00504,97618.0,97617.0,0.00128001]
[1734739533316,4e-05,97618.0,97617.0,0.00128001]
[1734739534018,0.00604,97618.0,97617.0,0.00128001]
[1734739534621,0.0850076,97618.0,97617.0,0.00128001]
[1734739535518,0.0860076,97618.0,97617.0,0.00228001]
[1734739536618,0.21461829,97632.0,97617.0,0.30228001]
[1734739536820,0.21461829,97632.0,97626.0,0.051233]
[1734739537021,0.21461829,97632.0,97631.0,0.00136002]
[1734739537821,0.05123,97633.0,97631.0,0.00136002]
[1734739538222,0.05123,97633.0,97632.0,0.00136002]
[1734739539126,0.06023,97633.0,97632.0,0.00136002]
[1734739539719,0.05723,97633.0,97632.0,0.00236002]
[1734739540029,0.05823,97633.0,97629.0,0.051232]
[1734739540326,4e-05,97630.0,97629.0,0.051232]
[1734739541921,4e-05,97630.0,97623.0,0.29441661]
[1734739542129,4e-05,97630.0,97629.0,0.051232]
[1734739542332,0.005,97630.0,97629.0,0.051232]
[1734739542828,0.006,97630.0,97629.0,0.051232]
[1734739543424,0.3668,97630.0,97615.0,0.08238447]
[1734739543617,0.3658,97630.0,97629.0,0.051232]
[1734739544222,0.3658,97630.0,97603.0,0.06649193]
[1734739544430,0.3658,97630.0,97604.0,0.1021]
[1734739544431,0.051239,97615.0,97604.0,0.1021]
[1734739544621,0.42087928,97615.0,97601.0,0.051246]
[1734739544824,0.42087928,97615.0,97593.0,0.06649193]
[1734739544825,0.42087928,97615.0,97603.0,0.051245]
[1734739545026,0.42091928,97615.0,97603.0,0.051245]
[1734739545523,0.43506373,97615.0,97614.0,0.00253663]
[1734739545828,0.44727651,97615.0,97614.0,0.00553663]
[1734739546525,0.44727651,97615.0,97614.0,0.00253663]
[1734739547333,0.58505946,97615.0,97614.0,0.00253663]
[1734739547538,0.58519289,97615.0,97614.0,0.00153663]
[1734739547725,0.58919289,97615.0,97614.0,0.00153663]
[1734739549131,0.58519289,97615.0,97614.0,0.00153663]
[1734739549335,0.59719289,97615.0,97614.0,0.00253663]
[1734739549525,0.051244,97606.0,97590.0,0.051252]
[1734739549733,0.3608,97601.0,97590.0,0.051252]
[1734739549925,0.39617094,97601.0,97590.0,0.051252]
[1734739550430,0.39617094,97601.0,97583.0,0.02994805]
[1734739550734,0.3608,97590.0,97585.0,0.051255]
[1734739551135,0.03529996,97589.0,97581.0,0.0951]
[1734739551321,0.03529996,97588.0,97579.0,0.051258]
[1734739551526,0.03529996,97587.0,97579.0,0.051258]
[1734739551727,0.02308718,97586.0,97579.0,0.051258]
[1734739552036,0.02308718,97585.0,97579.0,0.051258]
[1734739552237,0.02308718,97584.0,97579.0,0.051258]
[1734739552432,0.02308718,97583.0,97579.0,0.051258]
[1734739552735,0.02308718,97582.0,97579.0,0.054258]
[1734739552936,0.02308718,97581.0,97579.0,0.054258]
[1734739553135,0.02307435,97580.0,97579.0,0.004]
[1734739553435,0.02307435,97580.0,97579.0,0.001]
[1734739554037,0.07433135,97580.0,97579.0,0.001]
[1734739554226,0.14018179,97580.0,97579.0,0.001]
[1734739554732,0.33448179,97580.0,97579.0,0.001]
[1734739555436,0.33848179,97580.0,97579.0,0.001]
[1734739555731,0.051263,97571.0,97555.0,0.05127]
[1734739556038,0.36084,97560.0,97559.0,0.35280507]
[1734739556233,0.36969289,97560.0,97559.0,0.35280507]
[1734739556536,0.36969289,97560.0,97559.0,0.419297]
[1734739556836,0.43554333,97560.0,97559.0,0.419297]
[1734739557133,0.43554333,97560.0,97559.0,0.421297]
[1734739558231,0.43554333,97560.0,97559.0,0.20694616]
[1734739558436,0.43554333,97560.0,97559.0,0.4108741]
[1734739558731,0.01416463,97574.0,97573.0,0.051266]
[1734739559641,0.21405342,97577.0,97566.0,0.1011]
[1734739559934,0.36156,97579.0,97576.0,0.051265]
[1734739560130,0.3608,97579.0,97576.0,0.051265]
[1734739561124,0.15279958,97577.0,97567.0,0.0946]
[1734739561330,0.15279958,97577.0,97569.0,0.051268]
[1734739561331,0.3608,97571.0,97569.0,0.051268]
[1734739561534,0.051267,97572.0,97569.0,0.051268]
[1734739562332,0.15279958,97573.0,97571.0,0.051267]
[1734739563533,0.051265,97575.0,97571.0,0.051267]
[1734739563735,0.051265,97575.0,97569.0,0.001]
[1734739564036,0.36156,97579.0,97575.0,0.051265]
[1734739564337,0.50611684,97579.0,97577.0,0.051264]
[1734739565137,0.416063,97579.0,97577.0,0.051264]
[1734739565327,0.51011684,97579.0,97577.0,0.051264]
[1734739565532,0.051264,97578.0,97562.0,0.051272]
[1734739565931,0.051264,97577.0,97574.0,0.051265]
[1734739566129,0.051267,97571.0,97569.0,0.051268]
[1734739566439,0.36084,97570.0,97569.0,0.051268]
[1734739566939,0.05127,97566.0,97564.0,0.051271]
[1734739567439,4e-05,97565.0,97564.0,0.051271]
[1734739568236,4e-05,97565.0,97562.0,0.003]
[1734739568435,4e-05,97565.0,97563.0,0.051271]
[1734739568635,0.003,97566.0,97565.0,0.05127]
[1734739568831,0.003,97565.0,97564.0,0.052271]
[1734739569334,0.15271033,97566.0,97564.0,0.051271]
[1734739569533,0.003,97565.0,97564.0,0.051271]
[1734739570635,0.01175919,97565.0,97564.0,0.051271]
[1734739571142,0.01275919,97565.0,97564.0,0.051271]
[1734739574045,0.07101727,97565.0,97551.0,0.412077]
[1734739574248,0.00875919,97564.0,97551.0,0.412077]
[1734739574445,0.00875919,97563.0,97562.0,0.051272]
[1734739574662,0.00878429,97563.0,97552.0,0.051277]
[1734739574840,0.00878429,97562.0,97561.0,0.051273]
[1734739576052,0.06704237,97562.0,97561.0,0.051273]
[1734739576740,0.0793296,97562.0,97561.0,0.051273]
[1734739577151,0.0823296,97562.0,97561.0,0.051273]
[1734739577343,0.02407152,97562.0,97561.0,0.052273]
[1734739578252,0.47892536,97562.0,97561.0,0.001]
[1734739578452,0.53019736,97562.0,97561.0,0.001]
[1734739578750,0.10057156,97557.0,97535.0,0.0951]
[1734739579049,0.3608,97545.0,97544.0,0.051281]
[1734739579260,0.38187152,97545.0,97544.0,0.051281]
[1734739579847,0.42257829,97562.0,97544.0,0.351281]
[1734739580047,0.3638,97562.0,97561.0,0.051273]
[1734739580245,0.3608,97562.0,97561.0,0.051273]
[1734739580447,0.10057156,97580.0,97561.0,0.051273]
[1734739580448,0.22538713,97582.0,97576.0,0.051265]
[1734739580751,0.22538713,97582.0,97576.0,0.412065]
[1734739580946,0.22538713,97582.0,97576.0,0.051265]
[1734739581158,0.051264,97578.0,97576.0,0.051265]
[1734739581346,0.051264,97578.0,97573.0,0.3608]
[1734739581546,0.051264,97577.0,97576.0,0.001]
[1734739581745,0.153564,97577.0,97576.0,0.001]
[1734739581938,0.156564,97577.0,97576.0,0.001]
[1734739582345,0.21470841,97577.0,97576.0,0.001]
[1734739582547,0.21470841,97577.0,97576.0,0.052265]
[1734739582747,0.11240841,97577.0,97576.0,0.052265]
[1734739583252,0.11840841,97577.0,97576.0,0.052265]
[1734739583556,0.12040841,97577.0,97576.0,0.052265]
[1734739583856,0.06914441,97577.0,97576.0,0.052265]
[1734739584954,0.011,97577.0,97576.0,0.052265]
[1734739588852,0.011,97577.0,97576.0,0.001]
[1734739589944,0.009,97577.0,97576.0,0.001]
[1734739590261,0.11537874,97577.0,97576.0,0.001]
[1734739590862,0.11137874,97577.0,97575.0,0.051265]
[1734739591154,4e-05,97576.0,97575.0,0.051265]
[1734739591858,0.00860306,97576.0,97575.0,0.051265]
[1734739593258,0.00960306,97576.0,97575.0,0.051265]
[1734739593561,0.0096091,97576.0,97575.0,0.051265]
[1734739593855,0.00604,97576.0,97575.0,0.051265]
[1734739594557,0.01460921,97576.0,97575.0,0.051265]
[1734739595357,0.06587421,97576.0,97575.0,0.051265]
[1734739596064,0.06487421,97576.0,97575.0,0.051265]
[1734739596462,0.07684985,97576.0,97575.0,0.051265]
[1734739597355,0.06487421,97576.0,97575.0,0.051265]
[1734739597564,0.051268,97570.0,97563.0,0.37104625]
[1734739597748,0.10956921,97569.0,97563.0,0.37104625]
[1734739597952,4e-05,97564.0,97563.0,0.412071]
[1734739598159,0.00860921,97564.0,97563.0,0.412071]
[1734739598360,0.00861426,97564.0,97563.0,0.051271]
[1734739598752,0.05988526,97564.0,97563.0,0.051271]
[1734739599460,0.06188526,97564.0,97563.0,0.051271]
[1734739599664,0.1046681,97564.0,97550.0,0.10057156]
[1734739599855,0.3608,97562.0,97550.0,0.11046224]
[1734739600047,4e-05,97551.0,97550.0,0.15184956]
[1734739600252,0.00861426,97551.0,97550.0,0.051278]
[1734739600865,0.10061651,97551.0,97550.0,0.055278]
[1734739601160,0.10061651,97551.0,97550.0,0.058278]
[1734739602155,0.00861426,97551.0,97550.0,0.058278]
[1734739603251,0.00861426,97551.0,97550.0,0.057278]
[1734739603660,0.00861287,97551.0,97550.0,0.057278]
[1734739604363,0.0086158,97551.0,97550.0,0.057278]
[1734739606252,4e-05,97551.0,97550.0,0.057278]
[1734739606458,0.00860472,97551.0,97550.0,0.057278]
[1734739606659,4e-05,97551.0,97550.0,0.057278]
[1734739606865,0.00860396,97551.0,97550.0,0.057278]
[1734739607768,0.10056321,97551.0,97550.0,0.057278]
[1734739609068,0.00860396,97551.0,97550.0,0.057278]
[1734739609266,0.1346453,97558.0,97550.0,0.057278]
[1734739609469,0.1346453,97558.0,97557.0,0.412075]
[1734739609772,0.12266966,97558.0,97557.0,0.412075]
[1734739610466,0.09195832,97565.0,97564.0,0.051271]
[1734739611557,0.09195832,97569.0,97563.0,0.18402982]
[1734739611762,0.150071,97564.0,97557.0,0.24599196]
[1734739611965,0.150071,97564.0,97557.0,0.24547196]
[1734739611966,0.412074,97558.0,97557.0,0.24547196]
[1734739612184,0.051278,97551.0,97535.0,0.051286]
[1734739612357,0.4644,97550.0,97530.0,0.3608]
[1734739612560,0.051283,97542.0,97541.0,0.27551843]
[1734739612763,0.412083,97542.0,97541.0,0.27551843]
[1734739613363,0.412083,97542.0,97530.0,0.3608]
[1734739613364,0.051288,97533.0,97530.0,0.3608]
[1734739613569,0.3608,97542.0,97530.0,0.3608]
[1734739613771,4e-05,97531.0,97530.0,0.3608]
[1734739615073,4e-05,97531.0,97530.0,0.3698]
[1734739615074,0.00104,97531.0,97530.0,0.3698]
[1734739615462,0.051296,97516.0,97500.0,0.1]
[1734739615664,0.051304,97501.0,97500.0,0.1]
[1734739615867,0.72256,97506.0,97504.0,0.051302]
[1734739616071,0.01251081,97505.0,97504.0,0.051302]
[1734739616273,0.00096001,97506.0,97504.0,0.051302]
[1734739616459,0.3608,97514.0,97500.0,0.1]
[1734739616665,0.3608,97514.0,97513.0,0.051298]
[1734739617682,0.3608,97514.0,97513.0,0.052298]
[1734739618265,0.3628,97514.0,97513.0,0.052298]
[1734739618670,0.002,97514.0,97513.0,0.052298]
[1734739620771,0.09165483,97530.0,97529.0,0.051289]
[1734739621367,0.10012476,97530.0,97529.0,0.051289]
[1734739621578,0.00846993,97530.0,97529.0,0.051289]
[1734739621877,0.01746993,97530.0,97517.0,0.051295]
[1734739622075,0.051297,97515.0,97513.0,0.001]
[1734739622276,0.051297,97515.0,97512.0,0.051298]
[1734739622472,4e-05,97514.0,97512.0,0.051298]
[1734739622773,4e-05,97513.0,97512.0,0.051298]
[1734739623277,0.051338,97513.0,97506.0,0.051301]
[1734739623466,0.051338,97513.0,97500.0,0.1]
[1734739623665,4e-05,97508.0,97507.0,0.051301]
[1734739625572,0.051302,97505.0,97500.0,0.155304]
[1734739625874,4e-05,97501.0,97500.0,0.155304]
[1734739626076,4e-05,97501.0,97500.0,0.151304]
[1734739626877,4e-05,97501.0,97500.0,0.155304]
[1734739627073,4e-05,97501.0,97500.0,0.104]
[1734739627267,4e-05,97501.0,97500.0,0.107]
[1734739627872,4e-05,97501.0,97500.0,0.104]
[1734739628066,4e-05,97501.0,97500.0,0.107]
[1734739628570,0.00904,97501.0,97500.0,0.104]
[1734739629763,0.01204,97501.0,97500.0,0.1]
[1734739631471,0.00304,97501.0,97500.0,0.1]
[1734739631671,0.01204,97501.0,97500.0,0.1]
[1734739631876,0.00904,97501.0,97500.0,0.1]
[1734739632074,0.01104,97501.0,97500.0,0.1]
[1734739633881,0.37184,97501.0,97487.0,0.00153851]
[1734739634178,0.36084,97488.0,97487.0,0.00153851]
[1734739635483,0.051313,97484.0,97479.0,0.051316]
[1734739635669,0.3608,97480.0,97479.0,0.051316]
[1734739635874,0.36084,97480.0,97479.0,0.051316]
[1734739636478,0.051319,97472.0,97471.0,8e-05]
[1734739636669,0.412119,97472.0,97471.0,8e-05]
[1734739636975,0.412159,97472.0,97471.0,8e-05]
[1734739638282,0.051322,97468.0,97458.0,0.051326]
[1734739638476,0.3608,97459.0,97434.0,0.3608]
[1734739638677,0.3608,97450.0,97443.0,0.051334]
[1734739638990,0.412131,97450.0,97434.0,0.3608]
[1734739639187,0.412131,97450.0,97437.0,0.051338]
[1734739639188,0.051334,97444.0,97437.0,0.051338]
[1734739639492,0.051332,97449.0,97430.0,0.10057156]
[1734739639784,0.7226,97450.0,97442.0,0.00853899]
[1734739639986,0.7216,97450.0,97448.0,0.051332]
[1734739640172,0.7226,97450.0,97449.0,0.2051]
[1734739640880,0.7216,97450.0,97449.0,0.1]
[1734739641391,0.7226,97450.0,97449.0,0.104]
[1734739641886,0.7226,97450.0,97449.0,0.004]
[1734739642483,0.7226,97450.0,97449.0,0.008]
[1734739643391,0.001,97450.0,97449.0,0.008]
[1734739643685,0.12148273,97455.0,97454.0,0.051329]
[1734739643986,0.12148273,97455.0,97454.0,0.412129]
[1734739644185,0.09117205,97456.0,97455.0,0.051328]
[1734739645589,0.12148273,97462.0,97455.0,0.06327154]
[1734739645887,0.09119634,97462.0,97461.0,0.051325]
[1734739646980,0.12148273,97467.0,97466.0,0.051323]
[1734739647193,0.12148273,97467.0,97466.0,0.412123]
[1734739647493,0.00153971,97484.0,97473.0,0.051319]
[1734739647686,0.00153971,97484.0,97473.0,0.412119]
[1734739647881,0.12171549,97481.0,97479.0,0.051316]
[1734739648190,0.12171549,97481.0,97480.0,0.3608]
[1734739649389,0.01251081,97501.0,97492.0,0.051309]
[1734739649585,0.01251081,97500.0,97494.0,0.051308]
[1734739649887,0.01594076,97502.0,97493.0,0.3608]
[1734739650091,0.01594076,97502.0,97501.0,0.051304]
[1734739650282,0.051308,97495.0,97493.0,0.3608]
[1734739650484,0.01283959,97494.0,97486.0,0.051312]
[1734739650801,0.3608,97498.0,97486.0,0.051312]
[1734739650802,4e-05,97487.0,97486.0,0.051312]
[1734739651090,0.01287959,97487.0,97486.0,0.051312]
[1734739651284,0.02130076,97487.0,97486.0,0.051312]
[1734739651694,0.01287959,97487.0,97486.0,0.051312]
[1734739652690,0.02131685,97487.0,97486.0,0.051312]
[1734739653085,0.02131685,97487.0,97486.0,0.052312]
[1734739653392,0.02731685,97487.0,97486.0,0.052312]
[1734739653778,0.00604,97487.0,97486.0,0.052312]
[1734739653986,0.00404,97487.0,97486.0,0.052312]
[1734739654489,4e-05,97487.0,97486.0,0.052312]
[1734739654694,0.00604,97487.0,97486.0,0.052312]
[1734739655194,0.00404,97487.0,97486.0,0.052312]
[1734739656685,0.00604,97487.0,97486.0,0.052312]
[1734739657387,4e-05,97487.0,97486.0,0.052312]
[1734739657589,0.00404,97487.0,97486.0,0.051312]
[1734739657790,0.00404,97487.0,97486.0,0.052312]
[1734739658384,0.00404,97487.0,97486.0,0.051312]
[1734739658587,0.00404,97487.0,97486.0,0.052312]
[1734739661890,0.02130193,97500.0,97499.0,0.051305]
[1734739662097,0.15308662,97501.0,97500.0,0.051305]
[1734739662400,0.15308662,97501.0,97500.0,0.412105]
[1734739662994,0.15308662,97505.0,97504.0,0.051303]
[1734739664303,0.16208662,97505.0,97504.0,0.051303]
[1734739664499,0.012,97505.0,97504.0,0.051303]
[1734739666300,0.012,97505.0,97500.0,0.3391252]
[1734739666700,4e-05,97501.0,97500.0,0.3904302]
[1734739667294,0.00846128,97501.0,97500.0,0.3904302]
[1734739668004,0.01746128,97501.0,97500.0,0.3914302]
[1734739668588,0.002,97505.0,97500.0,0.3914302]
[1734739668808,0.15308662,97515.0,97509.0,0.0513]
[1734739669109,0.15308662,97515.0,97514.0,0.412097]
[1734739669488,6.2e-07,97515.0,97514.0,0.412097]
[1734739670197,0.00842128,97534.0,97514.0,0.412097]
[1734739670390,0.009,97515.0,97514.0,0.412097]
[1734739670589,0.009,97515.0,97514.0,0.772897]
[1734739670898,0.006,97515.0,97514.0,0.772897]
[1734739671603,0.2344,97538.0,97537.0,0.051285]
[1734739672217,0.24282128,97538.0,97537.0,0.051285]
[1734739673004,0.3608,97540.0,97530.0,0.3608]
[1734739673209,0.00842128,97555.0,97554.0,0.051276]
[1734739673395,0.00842128,97555.0,97533.0,0.051287]
[1734739673396,0.2253,97557.0,97546.0,0.10057156]
[1734739673591,0.1117,97557.0,97546.0,0.10057156]
[1734739674010,0.1117,97557.0,97546.0,0.46137156]
[1734739674197,0.1117,97557.0,97556.0,0.051275]
[1734739674589,0.1147,97557.0,97556.0,0.051275]
[1734739675894,0.009,97557.0,97556.0,0.051275]
[1734739676196,0.014,97557.0,97556.0,0.051275]
[1734739676806,0.005,97557.0,97556.0,0.051275]
[1734739676998,0.00153836,97560.0,97556.0,0.052275]
[1734739677197,0.00842859,97583.0,97582.0,0.051262]
[1734739678002,0.238,97585.0,97582.0,0.051262]
[1734739678901,0.015881,97595.0,97582.0,0.009]
[1734739679203,0.1165,97599.0,97598.0,0.051253]
[1734739680401,0.1215,97599.0,97598.0,0.051253]
[1734739680598,0.005,97599.0,97598.0,0.051253]
[1734739680799,0.005,97599.0,97598.0,0.412053]
[1734739681901,0.006,97599.0,97598.0,0.413053]
[1734739683505,0.1218,97622.0,97598.0,0.3618]
[1734739683707,0.3608,97633.0,97625.0,0.051239]
[1734739683907,0.1283,97632.0,97625.0,0.051239]
[1734739684109,0.1283,97632.0,97612.0,0.10057156]
[1734739684417,0.1283,97632.0,97630.0,0.051236]
[1734739684812,0.1283,97632.0,97620.0,0.10057156]
[1734739685001,0.1283,97632.0,97628.0,0.051237]
[1734739685312,0.1231,97634.0,97633.0,0.051235]
[1734739685917,0.1248,97647.0,97646.0,0.051228]
[1734739686115,0.015881,97649.0,97648.0,0.051227]
[1734739686304,0.00153673,97656.0,97648.0,0.051227]
[1734739686305,0.00153673,97656.0,97655.0,0.051223]
[1734739687316,0.18395035,97662.0,97654.0,0.3608]
[1734739687616,0.051216,97669.0,97660.0,0.05122]
[1734739687818,0.3608,97664.0,97660.0,0.05122]
[1734739688006,0.3608,97664.0,97650.0,0.051225]
[1734739688322,0.3608,97664.0,97646.0,0.46137156]
[1734739688323,0.3608,97664.0,97654.0,0.10057156]
[1734739688515,0.3608,97673.0,97666.0,0.051217]
[1734739688907,0.3608,97673.0,97672.0,0.051214]
[1734739689713,0.3618,97673.0,97672.0,0.051214]
[1734739689912,0.3638,97673.0,97666.0,0.001]
[1734739690107,0.3638,97673.0,97672.0,0.051214]
[1734739690611,0.3618,97673.0,97672.0,0.051214]
[1734739691013,0.001,97673.0,97672.0,0.051214]
[1734739691414,0.168602,97697.0,97672.0,0.001]
[1734739691713,0.412005,97690.0,97681.0,0.051209]
[1734739691910,0.412005,97690.0,97684.0,0.051207]
[1734739692221,0.3608,97687.0,97672.0,0.001]
[1734739692413,0.3608,97687.0,97658.0,0.01189328]
[1734739692414,0.05121,97681.0,97678.0,0.051211]
[1734739692620,0.3608,97679.0,97678.0,0.051211]
[1734739693114,0.3608,97679.0,97670.0,0.051215]
[1734739693417,0.051213,97674.0,97672.0,0.001]
[1734739693615,0.3608,97679.0,97672.0,0.001]
[1734739693816,0.01568522,97696.0,97672.0,0.6618]
[1734739694019,0.01568522,97696.0,97695.0,0.051202]
[1734739694320,0.1174,97709.0,97699.0,0.0512]
[1734739695515,0.3608,97705.0,97699.0,0.0512]
[1734739695711,0.101,97700.0,97699.0,0.0522]
[1734739695912,0.103,97700.0,97699.0,0.0522]
[1734739696726,0.103,97700.0,97684.0,0.3608]
[1734739697223,0.103,97700.0,97699.0,0.0512]
[1734739697920,0.102,97700.0,97699.0,0.0512]
[1734739698516,0.102,97700.0,97699.0,0.0522]
[1734739700113,0.102,97700.0,97692.0,0.051204]
[1734739700319,0.3608,97693.0,97692.0,0.051204]
[1734739700521,0.36200003,97693.0,97692.0,0.051204]
[1734739702819,0.36200003,97677.0,97676.0,0.05374758]
[1734739705525,0.00120003,97677.0,97676.0,0.41454758]
[1734739707822,3e-08,97677.0,97676.0,0.41554758]
[1734739708321,3e-08,97677.0,97676.0,0.41454758]
[1734739709011,3e-08,97677.0,97676.0,0.42620984]
[1734739709213,3e-08,97677.0,97676.0,0.05374758]
[1734739709422,0.01228154,97677.0,97676.0,0.05374758]
[1734739709927,0.06349354,97677.0,97676.0,0.00153558]
[1734739710125,0.06349354,97677.0,97676.0,0.00253558]
[1734739710320,0.07191024,97677.0,97676.0,0.00253558]
[1734739710626,0.07191024,97677.0,97642.0,0.0115107]
[1734739710922,0.3608,97654.0,97652.0,0.051225]
[1734739711517,0.01228151,97653.0,97652.0,0.051225]
[1734739712311,0.01228151,97653.0,97652.0,0.060225]
[1734739712924,0.01228151,97653.0,97652.0,0.015]
[1734739713223,0.07192221,97653.0,97652.0,0.015]
[1734739714517,0.07192221,97653.0,97652.0,0.006]
[1734739714712,0.07191172,97653.0,97652.0,0.015]
[1734739714922,0.051229,97643.0,97642.0,4e-05]
[1734739715121,0.051232,97639.0,97638.0,0.00153614]
[1734739715321,0.00840621,97639.0,97608.0,0.24144059]
[1734739715522,0.3608,97628.0,97626.0,0.051238]
[1734739715826,0.02068772,97627.0,97626.0,0.051238]
[1734739716718,0.01228151,97627.0,97626.0,0.051238]
[1734739717319,0.01228151,97627.0,97609.0,0.3608]
[1734739717320,0.05124,97624.0,97609.0,0.3608]
[1734739717518,0.3608,97620.0,97609.0,0.3608]
[1734739717720,0.3608,97620.0,97615.0,0.051244]
[1734739718325,0.3608,97620.0,97616.0,0.051243]
[1734739718515,0.00839405,97619.0,97616.0,0.051243]
[1734739718721,0.00839405,97619.0,97609.0,0.004]
[1734739719025,0.00839405,97618.0,97617.0,0.051243]
[1734739719221,0.3608,97620.0,97619.0,0.051242]
[1734739719222,0.3618,97620.0,97619.0,0.051242]
[1734739719418,0.3628,97620.0,97619.0,0.051242]
[1734739719626,0.002,97620.0,97619.0,0.412042]
[1734739719825,0.1213226,97634.0,97619.0,0.412042]
[1734739720025,0.1213226,97634.0,97633.0,0.051235]
[1734739721233,0.3608,97638.0,97637.0,0.051233]
[1734739721622,0.3608,97638.0,97637.0,0.05235298]
[1734739722318,0.3668,97638.0,97637.0,0.05335298]
[1734739722524,0.37871264,97638.0,97637.0,0.05335298]
[1734739722728,0.38071264,97638.0,97637.0,0.05335298]
[1734739724124,0.37871264,97638.0,97637.0,0.05335298]
[1734739724324,0.38071264,97638.0,97637.0,0.05335298]
[1734739724524,0.37471264,97638.0,97637.0,0.05335298]
[1734739724740,0.3688,97638.0,97637.0,0.05335298]
[1734739724935,0.38071264,97638.0,97637.0,0.05335298]
[1734739726626,0.3688,97638.0,97637.0,0.05335298]
[1734739729724,0.420032,97638.0,97637.0,0.00211998]
[1734739731637,0.418032,97638.0,97637.0,0.00211998]
[1734739731836,0.420032,97638.0,97637.0,0.00211998]
[1734739732135,0.421032,97638.0,97637.0,0.00211998]
[1734739735332,0.422032,97638.0,97637.0,0.00211998]
[1734739735533,0.43348335,97638.0,97637.0,0.00211998]
[1734739736038,0.43148335,97638.0,97637.0,0.00211998]
[1734739736342,0.43448335,97638.0,97637.0,0.00211998]
[1734739736635,0.423032,97638.0,97637.0,0.00211998]
[1734739738631,0.43142653,97638.0,97637.0,0.00211998]
[1734739738827,0.43142653,97638.0,97619.0,0.37350811]
[1734739738828,0.55274913,97638.0,97619.0,0.00111998]
[1734739739025,0.412042,97620.0,97619.0,0.00111998]
[1734739739330,0.42047653,97620.0,97619.0,0.00111998]
[1734739740044,0.43232066,97620.0,97619.0,0.00211998]
[1734739740343,0.05125,97604.0,97598.0,8e-05]
[1734739740530,0.78125403,97604.0,97602.0,0.051251]
[1734739740736,0.77289,97604.0,97602.0,0.051251]
[1734739741340,0.77389,97604.0,97603.0,0.00712009]
[1734739741844,0.77389,97604.0,97603.0,0.007]
[1734739742435,0.051253,97599.0,97598.0,8e-05]
[1734739742843,0.051293,97599.0,97598.0,8e-05]
[1734739744647,0.059293,97599.0,97598.0,0.00108]
[1734739745445,0.00804,97599.0,97598.0,0.00108]
[1734739746138,0.00604,97599.0,97598.0,0.00108]
[1734739746445,0.00804,97599.0,97598.0,0.00108]
[1734739746637,0.00804,97599.0,97598.0,0.38448]
[1734739746946,4e-05,97599.0,97598.0,0.38448]
[1734739747130,0.00804,97599.0,97598.0,0.38448]
[1734739747449,0.00804,97599.0,97598.0,0.92841443]
[1734739747746,0.00604,97599.0,97598.0,0.92841443]
[1734739747949,0.00804,97599.0,97598.0,0.92841443]
[1734739749244,0.00804,97599.0,97598.0,0.74528]
[1734739751040,0.3608,97620.0,97598.0,0.74528]
[1734739751248,0.3608,97620.0,97619.0,0.051242]
[1734739751747,0.36918834,97620.0,97619.0,0.051242]
[1734739752148,0.00838834,97620.0,97619.0,0.051242]
[1734739752444,0.00838834,97626.0,97625.0,0.051239]
[1734739752750,0.00153718,97628.0,97625.0,0.051239]
[1734739753250,0.00153718,97628.0,97626.0,0.1252]
[1734739754433,0.412038,97627.0,97625.0,0.002]
[1734739754641,0.051242,97619.0,97618.0,0.18359284]
[1734739754837,0.412042,97619.0,97618.0,0.18359284]
[1734739756044,0.412042,97619.0,97606.0,0.18359284]
[1734739756243,0.412048,97610.0,97609.0,0.051247]
[1734739756454,0.051248,97607.0,97606.0,0.18359284]
[1734739757542,0.051248,97607.0,97605.0,0.051249]
[1734739757751,0.051248,97607.0,97606.0,0.003]
[1734739758155,0.051248,97607.0,97606.0,0.007]
[1734739758649,0.051248,97607.0,97606.0,0.003]
[1734739759648,0.051248,97607.0,97605.0,0.005]
[1734739759947,0.051253,97599.0,97598.0,0.18367284]